[Event "85th Tata Steel Masters 2023"]
[Site "Wijk aan Zee"]
[Date "2023.01.25"]
[Round "10.2"]
[White "So, Wesley"]
[Black "Giri, Anish"]
[Result "1/2-1/2"]
[ECO "E05"]
[WhiteElo "2760"]
[BlackElo "2764"]
[Annotator "TA"]
[PlyCount "67"]
[EventDate "2023.01.10"]
[EventType "tourn"]
[EventCountry "NED"]
[SourceTitle "playchess.com"]
[Source "ChessBase"]
[SourceQuality "1"]
[TimeControl "40/6000+30:30/3000+30:900+30"]

{[%evp 21,67,6,10,0,0,0,0,0,12,11,21,9,16,0,0,-17,-8,-12,0,0,0,0,0,0,0,0,0,0,0,0,0,0,0,0,8,0,0,0,0,0,0,0,0,0,15,10,25,0]} 1. Nf3 {[%emt 0:00:03]} d5 {[%emt 0:00:05]} 2. g3 {[%emt 0:00:06]} Nf6 {[%emt 0:00:04]} 3. Bg2 {[%emt 0:00:06]} e6 {[%emt 0:00:03]} 4. O-O {[%emt 0:07:35]} Be7 {[%emt 0:00:08]} 5. c4 {[%emt 0:00:06]} O-O {[%emt 0:00:05]} 6. d4 {[%emt 0:00:04]} dxc4 {[%emt 0:00:04]} 7. Qc2 {[%emt 0:00:04]} a6 {[%emt 0:00:04]} 8. a4 {[%emt 0:00:06]} Bd7 {[%emt 0:00:04]} 9. Qxc4 {[%emt 0:00:05]} Bc6 {[%emt 0:00:05]} 10. Bg5 {[%emt 0:00:04]} Nbd7 {[%emt 0:01:27]} 11. Nc3 {[%emt 0:03:31]} h6 {[%emt 0:00:11] [#] aiming for ...Nb6.} 12. Bd2 {[%emt 0:00:04] E05: Open Catalan: 5 Nf3 Be7.} (12. Bxf6 Nxf6 13. b4 Bd5 14. Nxd5 exd5 15. Qb3 c6 16. e3 Bd6 17. Rab1 Qe7 18. Rfd1 g6 19. Ne1 Kg7 20. b5 axb5 21. axb5 Qd7 22. Nd3 {½-½ So,W (2776)-Giri,A (2779) Sinquefield Cup 7th 2019 (3)}) 12... a5 {[%emt 0:02:59]} 13. Qd3 {[%emt 0:02:04]} Bb4 {[%emt 0:00:56]} 14. Rfe1 {[%emt 0:01:54] The position is equal.} Re8 {[%emt 0:03:37]} 15. Qc2 {[%emt 0:00:49]} Bxc3 {[%emt 0:00:58] [#]} 16. Bxc3 $146 {[%emt 0:04:04]} ({Predecessor:} 16. bxc3 Be4 17. Qb2 Ra6 18. Red1 Bd5 19. Bf4 Rb6 20. Qc1 Bb3 21. Rd2 Nd5 22. Rb2 {½-½ Bhattacharjea,R (1863)-Fernandes,J (1866) POR-USA email 2018 [35]}) 16... Be4 {[%emt 0:00:45]} 17. Qd1 {[%emt 0:05:08]} b6 {[%emt 0:11:37]} 18. Ne5 {[%emt 0:17:05]} Bxg2 {[%emt 0:01:49]} 19. Nxd7 {[%emt 0:00:05]} Qxd7 {[%emt 0:08:57]} 20. Kxg2 {[%emt 0:00:08]} Ne4 {[%emt 0:00:14]} 21. Qd3 {[%emt 0:03:34]} Nxc3 {[%emt 0:00:28]} 22. bxc3 {[%emt 0:00:04]} Rad8 {[%emt 0:02:16]} 23. Red1 {[%emt 0:03:50]} c5 {[%emt 0:03:39]} 24. Qf3 {[%emt 0:07:21]} cxd4 {[%emt 0:00:52]} 25. cxd4 {[%emt 0:00:03]} b5 {[%emt 0:04:06]} 26. axb5 {[%emt 0:00:40]} Qxb5 {[%emt 0:00:04]} 27. Rdb1 {[%emt 0:00:06]} Qd5 {[%emt 0:00:14]} 28. Qxd5 {[%emt 0:00:11]} Rxd5 $11 {[%emt 0:00:03][%mdl 4096] Endgame KRR-KRR} 29. e3 {[%emt 0:00:04]} e5 {[%emt 0:01:13]} 30. dxe5 {[%emt 0:00:14]} Rdxe5 {[%emt 0:00:08]} 31. Rb7 {[%emt 0:00:09]} Ra8 {[%emt 0:00:44] Repels Ra7} 32. Ra4 {[%emt 0:00:05]} Kf8 {[%emt 0:07:21]} 33. h4 {[%emt 0:03:37]} h5 {[%emt 0:01:00]} 34. Kf3 {[%emt 0:00:29] A rather calm draw.   Weighted Error Value: White=0.03 (flawless) /Black=0.04 (flawless)} 1/2-1/2

[Event "85th Tata Steel Masters 2023"]
[Site "Wijk aan Zee"]
[Date "2023.01.25"]
[Round "10.3"]
[White "Maghsoodloo, Parham"]
[Black "Carlsen, Magnus"]
[Result "0-1"]
[ECO "D35"]
[WhiteElo "2719"]
[BlackElo "2859"]
[Annotator "TA"]
[PlyCount "112"]
[EventDate "2023.01.10"]
[EventType "tourn"]
[EventCountry "NED"]
[SourceTitle "playchess.com"]
[Source "ChessBase"]
[SourceQuality "1"]
[TimeControl "40/6000+30:30/3000+30:900+30"]

{[%evp 12,112,20,8,20,24,19,24,21,16,14,19,25,15,15,12,13,28,19,12,11,22,12,0,0,0,0,0,0,0,0,0,0,-18,-23,-5,-3,-15,-14,-11,-15,-14,-8,-41,-51,-100,-106,-190,-158,-160,-152,-204,-226,-293,-298,-370,-335,-400,-265,-262,-267,-262,-250,-264,-261,-388,-315,-534,-530,-1219,-685,-1205,-985,-801,-376,-616,-584,-12849,-11516,-29953,-29951,-29953,-29953,-10176,-6220,-29969,-29970,-29971,-29972,-29972,-29973,-29974,-29974,-29974,-29975,-29977,-29978,-29978,-29979,-29979,-29980,-29978,-29978]} 1. d4 {[%emt 0:00:03]} d5 {[%emt 0:01:50]} 2. c4 {[%emt 0:00:09]} e6 {[%emt 0:00:05]} 3. Nc3 {[%emt 0:01:39]} Nf6 {[%emt 0:00:44]} 4. cxd5 {[%emt 0:00:05]} exd5 {[%emt 0:00:06]} 5. Bg5 {[%emt 0:00:03]} Be7 {[%emt 0:00:43]} (5... c6 6. e3 h6 7. Bh4 Be7 8. Bd3 O-O 9. Nge2 Ne8 10. Bg3 Nd6 11. O-O Re8 12. Qc2 Bf8 13. Rae1 a5 14. Nf4 Na6 15. a3 Qf6 16. f3 b5 {½-½ Maghsoodloo,P (2721)-Carlsen,M (2856) EU-Cup 37th Mayrhofen 2022 (7.1)}) 6. e3 {[%emt 0:01:08]} h6 {[%emt 0:03:28]} 7. Bh4 {[%emt 0:00:11]} Bg4 $5 {[%emt 0:01:23][%mdl 4] [#] A promising side line. D35: Queen's Gambit Declined: Exchange Variation.} 8. Qa4+ $146 {[%emt 0:23:38]} ({Predecessor:} 8. f3 Be6 9. Bd3 O-O 10. Nge2 c5 11. Rc1 Nc6 12. O-O cxd4 13. Nxd4 Nxd4 14. exd4 Re8 15. Bc2 {½-½ Narkun,M (2375)-Woelfelschneider,P (2275) RM-2014-0-00140}) 8... c6 {[%emt 0:02:44]} 9. Bd3 {[%emt 0:00:26] Inhibits Bf5.} O-O {[%emt 0:02:35] White has an edge.} 10. h3 {[%emt 0:01:47]} Bh5 {[%emt 0:11:14]} 11. Qc2 {[%emt 0:33:35]} c5 {[%emt 0:09:38]} 12. g4 {[%emt 0:00:52]} cxd4 {[%emt 0:00:59]} 13. exd4 {[%emt 0:00:05]} Bg6 {[%emt 0:00:08]} 14. Bxg6 {[%emt 0:00:19]} fxg6 {[%emt 0:00:02]} 15. Qxg6 {[%emt 0:03:48]} Nxg4 {[%emt 0:00:33][%mdl 64] [#] Discovered Attack} 16. Qe6+ {[%emt 0:01:40]} Rf7 {[%emt 0:00:54]} 17. hxg4 {[%emt 0:01:00]} (17. Bg3 $5 Nf6 $8 18. Nf3 $11) 17... Bxh4 {[%emt 0:00:11]} 18. Nf3 $1 {[%emt 0:00:11]} (18. Qxd5 $2 Bxf2+ 19. Kf1 Qxd5 20. Nxd5 Nc6 $19) 18... Qf6 {[%emt 0:07:52] Repels Ne5} 19. Qxf6 {[%emt 0:10:03]} Bxf6 {[%emt 0:00:06]} 20. Nxd5 {[%emt 0:01:43]} Nc6 {[%emt 0:00:40]} 21. Rd1 {[%emt 0:00:34]} Re8+ {[%emt 0:05:27]} 22. Ne3 {[%emt 0:05:47]} Re4 {[%emt 0:03:38][%cal Rc6d4]} 23. d5 {[%emt 0:01:09]} Nb4 {[%emt 0:01:44]} 24. d6 {[%emt 0:09:59]} (24. Nd2 $5 {[%cal Rd2e4]} Rd4 25. Ndc4 $11) 24... Nc2+ {[%emt 0:05:58]} (24... Bxb2 $2 25. d7 Nc6 26. d8=R+ $18) 25. Ke2 {[%emt 0:00:06]} Nxe3 {[%emt 0:00:09]} 26. fxe3 {[%emt 0:00:05]} Rxg4 {[%emt 0:00:16]} 27. Rd5 {[%emt 0:03:23]} (27. d7 {with more complications.} Rf8 28. Kf2 Bd8 29. Rh5) 27... Rd7 {[%emt 0:01:57]} ({Don't play} 27... Bxb2 28. d7 Bf6 29. d8=Q+ (29. d8=B Rg2+ 30. Kd3 Rxa2 $16) (29. d8=R+ Bxd8 30. Rxd8+ Rf8 $16) 29... Bxd8 30. Rxd8+ Rf8 31. Rxf8+ Kxf8 32. Rh2 $16) (27... Rg2+ 28. Kd3 $14) 28. Rf1 {[%emt 0:01:22] White is on the road to losing.} (28. Rc1 $15) 28... Bxb2 $17 {[%emt 0:02:36]} 29. Rd3 {[%emt 0:03:26]} (29. Rb1 $17) 29... Bf6 {[%emt 0:01:25]} 30. Rd5 {[%emt 0:03:21]} Rb4 {[%emt 0:03:47]} 31. Rfd1 {[%emt 0:03:47] [#]} (31. Nd2 $17 {was worth a try.}) 31... Kf7 $1 $19 {[%emt 0:00:30]} 32. R1d3 {[%emt 0:00:33]} Ke6 {[%emt 0:02:10]} 33. Nd2 {[%emt 0:00:27]} Ra4 {[%emt 0:01:47]} 34. a3 {[%emt 0:00:31]} Rxa3 {[%emt 0:02:03][%mdl 64] Deflection} 35. Rxa3 {[%emt 0:00:34]} Kxd5 {[%emt 0:00:02]} 36. Rxa7 {[%emt 0:00:21]} Kxd6 {[%emt 0:00:07][%mdl 4096] Endgame KRB-KRN} ({Worse is} 36... Rxd6 37. Rxb7 Ra6 38. Kf3 $17) 37. Ne4+ {[%emt 0:00:05]} Kd5 {[%emt 0:00:36]} 38. Nxf6+ {[%emt 0:00:12]} (38. Kf3 {might work better.}) 38... gxf6 {[%emt 0:00:01] KR-KR} 39. Ra5+ $2 {[%emt 0:00:24]} (39. Kd3) 39... Kc4 {[%emt 0:01:04]} 40. Rf5 {[%emt 0:00:44]} Rd6 {[%emt 0:00:42] White must now prevent ...b5.} 41. Rf4+ {[%emt 0:51:08]} Kb3 {[%emt 0:51:05] aiming for ...b5.} 42. Rf5 {[%emt 0:00:08]} Ka4 {[%emt 0:00:08] Hoping for ...b5.} 43. Rf4+ $2 {[%emt 0:00:18]} (43. Rf1 b5 44. Ra1+ Kb4 45. Rb1+ Kc5 46. Rc1+ Kb6 47. Rb1) 43... Ka5 {[%emt 0:00:38] ...b5 is the strong threat.} 44. Rh4 {[%emt 0:00:06]} b5 {[%emt 0:00:07][%cal Bb7b5,Bb5b4][%mdl 32] ( -> ...b4)} 45. Rxh6 {[%emt 0:00:44]} b4 {[%emt 0:00:17]} 46. e4 {[%emt 0:00:00]} Ka4 {[%emt 0:00:00]} 47. e5 {[%emt 0:00:00]} Re6 {[%emt 0:00:00]} (47... fxe5 {gets mated.} 48. Rxd6 Kb5 49. Ke3 Kc5 50. Rd8 Kc4 51. Rc8+ Kd5 52. Kd3) 48. Rxf6 {[%emt 0:00:00]} Rxe5+ {[%emt 0:00:00] Black mates.} 49. Kd1 {[%emt 0:00:00]} Rc5 {[%emt 0:00:00]} 50. Ra6+ {[%emt 0:00:00]} Kb3 {[%emt 0:00:00]} 51. Rd6 {[%emt 0:00:00]} Ka3 {[%emt 0:00:00]} 52. Ra6+ {[%emt 0:00:00]} Kb2 {[%emt 0:00:00]} 53. Rd6 {[%emt 0:00:00]} b3 {[%emt 0:00:00]} 54. Rd8 {[%emt 0:00:00]} Kb1 {[%emt 0:00:00]} 55. Kd2 {[%emt 0:00:00]} b2 {[%emt 0:00:00]} 56. Ra8 {[%emt 0:00:00]} Rd5+ {[%emt 0:00:00] Weighted Error Value: White=0.69/Black=0.11 (very precise)} 0-1

[Event "85th Tata Steel Masters 2023"]
[Site "Wijk aan Zee"]
[Date "2023.01.25"]
[Round "10.4"]
[White "Rapport, Richard"]
[Black "Aronian, Levon"]
[Result "1/2-1/2"]
[ECO "C67"]
[WhiteElo "2740"]
[BlackElo "2735"]
[Annotator "TA"]
[PlyCount "70"]
[EventDate "2023.01.10"]
[EventType "tourn"]
[EventCountry "NED"]
[SourceTitle "playchess.com"]
[Source "ChessBase"]
[SourceQuality "1"]
[TimeControl "40/6000+30:30/3000+30:900+30"]

{[%evp 18,61,18,15,15,19,16,16,15,11,8,8,8,9,11,7,0,0,4,6,6,0,0,0,12,0,0,0,0,0,0,0,0,0,0,0,0,0,0,0,0,0,0,0,0,0]} 1. e4 {[%emt 0:00:37]} e5 {[%emt 0:00:06]} 2. Nf3 {[%emt 0:00:06]} Nc6 {[%emt 0:00:05]} 3. Bb5 {[%emt 0:00:07]} Nf6 {[%emt 0:00:09]} 4. O-O {[%emt 0:01:31][%cal Bh1f1,Bf1e1,Be1e5][%mdl 32]} Nxe4 {[%emt 0:00:04]} 5. Re1 {[%emt 0:00:15]} Nd6 {[%emt 0:00:05]} 6. Nxe5 {[%emt 0:00:05]} Be7 {[%emt 0:00:05]} 7. Bf1 {[%emt 0:00:08]} Nxe5 {[%emt 0:00:06]} 8. Rxe5 {[%emt 0:00:06]} O-O {[%emt 0:00:05]} 9. d4 {[%emt 0:00:52]} Bf6 {[%emt 0:00:58]} 10. Re1 {[%emt 0:01:49] The position is equal.} Re8 {[%emt 0:00:33] C67: Ruy Lopez: Berlin Defence: 4 0-0 Nxe4.} 11. c3 {[%emt 0:01:14]} Rxe1 {[%emt 0:00:56]} 12. Qxe1 {[%emt 0:00:05]} Ne8 {[%emt 0:01:27][%cal Bd6e8,Be8g7,Bg7f5][%mdl 32]} 13. Bd3 {[%emt 0:02:13]} d5 {[%emt 0:00:48]} 14. Bf4 {[%emt 0:00:50]} g6 {[%emt 0:00:31]} 15. Nd2 {[%emt 0:00:17][%cal Bb1d2,Bd2f3,Bf3e5][%mdl 32]} Ng7 {[%emt 0:00:08]} 16. Qe2 {[%emt 0:00:28]} c6 {[%emt 0:05:10]} 17. Re1 {[%emt 0:00:43]} Bf5 {[%emt 0:01:05]} 18. Bxf5 {[%emt 0:00:59]} Nxf5 {[%emt 0:00:05]} 19. Nf3 {[%emt 0:00:19]} Ng7 {[%emt 0:05:26]} 20. Be5 {[%emt 0:01:32]} Ne6 {[%emt 0:00:29]} 21. Bxf6 {[%emt 0:00:21]} Qxf6 {[%emt 0:00:05]} 22. Ne5 {[%emt 0:00:15]} Re8 {[%emt 0:00:17]} 23. Ng4 {[%emt 0:00:11]} Qd8 {[%emt 0:00:08]} 24. Qe5 {[%emt 0:00:10] aiming for Nf6+.} Ng7 {[%emt 0:00:06]} 25. Qxe8+ {[%emt 0:00:06][%mdl 64] [#] Decoy} ({Don't go for} 25. Nh6+ $2 Kf8 26. Nxf7 Rxe5 $19) 25... Nxe8 {[%emt 0:00:03]} 26. Rxe8+ {[%emt 0:00:07][%mdl 64] Remove Defender} Qxe8 {[%emt 0:00:03][%cal Re8e1]} 27. Nf6+ {[%emt 0:00:06]} Kf8 {[%emt 0:00:02][%cal Re8e1]} 28. Nxe8 {[%emt 0:00:06]} Kxe8 {[%emt 0:00:03]} 29. f4 {[%emt 0:00:05]} f5 {[%emt 0:00:04]} 30. b4 {[%emt 0:00:06]} b5 {[%emt 0:00:14]} 31. Kf2 {[%emt 0:00:06] [#] A rather calm draw.   Weighted Error Value: White=0.02 (flawless) /Black=0.01 (flawless)} {Predecessor:} Kf7 $146 32. Kf3 Kf6 33. Kf2 Kf7 34. Kf3 Kf6 35. Kf2 Kf7 {½-½ Anand,V (2753)-Grischuk,A (2778) Zagreb GCT Blitz 2021 (18)} 1/2-1/2

[Event "85th Tata Steel Masters 2023"]
[Site "Wijk aan Zee"]
[Date "2023.01.25"]
[Round "10.5"]
[White "Caruana, Fabiano"]
[Black "Erigaisi Arjun"]
[Result "1/2-1/2"]
[ECO "C90"]
[WhiteElo "2766"]
[BlackElo "2722"]
[Annotator "TA"]
[PlyCount "77"]
[EventDate "2023.01.10"]
[EventType "tourn"]
[EventCountry "NED"]
[SourceTitle "playchess.com"]
[Source "ChessBase"]
[SourceQuality "1"]
[TimeControl "40/6000+30:30/3000+30:900+30"]

{[%evp 23,77,20,18,14,8,19,20,12,12,7,24,27,12,7,15,17,22,0,0,-12,-4,-14,-9,-5,0,0,0,0,0,0,0,0,0,-11,0,-28,-28,-29,-29,-33,-19,-38,-18,-21,-25,-17,0,0,0,-12,0,-16,0,-5,0,-40]} 1. e4 {[%emt 0:00:03]} e5 {[%emt 0:00:51]} 2. Nf3 {[%emt 0:00:06]} Nc6 {[%emt 0:00:06]} 3. Bb5 {[%emt 0:00:04][%cal Bf1b5,Bb5a4,Ba4b3][%mdl 32]} a6 {[%emt 0:00:07]} 4. Ba4 {[%emt 0:00:05]} Nf6 {[%emt 0:00:06]} 5. O-O {[%emt 0:00:06]} Be7 {[%emt 0:00:26]} 6. d3 {[%emt 0:01:36]} b5 {[%emt 0:00:13]} 7. Bb3 {[%emt 0:00:05]} d6 {[%emt 0:02:17]} 8. a4 {[%emt 0:00:35]} Bd7 {[%emt 0:00:00]} 9. c3 {[%emt 0:02:33]} O-O {[%emt 0:00:00]} 10. Bc2 {[%emt 0:00:39]} Re8 {[%emt 0:00:49]} 11. Re1 {[%emt 0:03:21]} h6 {[%emt 0:00:37]} 12. Nbd2 {[%emt 0:08:29][%cal Bb1d2,Bd2f1,Bf1g3][%mdl 32]} Bf8 {[%emt 0:02:10]} 13. Nf1 {[%emt 0:05:41] C90: Closed Ruy Lopez with 7...d6: Early deviations.} d5 {[%emt 0:04:00]} 14. exd5 {[%emt 0:02:45]} Nxd5 {[%emt 0:00:16]} 15. Ng3 {[%emt 0:00:07]} b4 {[%emt 0:01:44]} 16. Bd2 {[%emt 0:01:11]} bxc3 {[%emt 0:01:24]} 17. bxc3 {[%emt 0:00:08]} Nf6 {[%emt 0:04:29]} 18. a5 {[%emt 0:10:34]} Rb8 {[%emt 0:02:02]} 19. Ba4 {[%emt 0:01:42]} Bd6 {[%emt 0:00:36]} (19... Nxa5 $2 20. Bxd7 (20. Rxe5 Bxa4 21. Rxa4 Qxd3 $15) 20... Qxd7 21. Rxa5 $18) 20. h3 {[%emt 0:02:06] [#]} Ne7 $146 {[%emt 0:14:58]} ({Predecessor:} 20... Na7 21. Bc2 Nb5 22. Qc1 Bc6 23. Nh4 Bf8 24. Nhf5 Qd5 25. Ne3 Qc5 26. Ra4 Nd6 {1-0 So,W (2772)-Le,Q (2709) Chessable Masters KO rapid 2021 (3.11)}) 21. Bc2 {[%emt 0:16:28]} Ng6 {[%emt 0:09:25]} 22. Rb1 {[%emt 0:09:46]} Rxb1 {[%emt 0:10:28]} 23. Qxb1 {[%emt 0:01:37]} Bc6 {[%emt 0:11:52]} 24. Ne4 {[%emt 0:00:18]} Nxe4 {[%emt 0:00:52]} 25. dxe4 {[%emt 0:00:06]} Bc5 {[%emt 0:04:15]} 26. Be3 {[%emt 0:11:02]} Bxe3 {[%emt 0:01:11]} 27. Rxe3 {[%emt 0:00:05]} Nf4 {[%emt 0:01:33][%cal Bg6f4,Bf4e6,Be6c5][%mdl 32]} 28. Kh2 {[%emt 0:02:06]} Qd6 {[%emt 0:07:15]} (28... Qd7 {is interesting.} 29. Bb3 Kh7 30. Qa2 f6) 29. g3 {[%emt 0:07:03]} Ne6 {[%emt 0:00:20]} 30. Bd3 {[%emt 0:00:22]} Nc5 {[%emt 0:01:09] next ...Nxd3 is good for Black.} 31. Be2 {[%emt 0:00:23]} g6 {[%emt 0:02:39]} 32. h4 {[%emt 0:04:26]} h5 {[%emt 0:01:34]} 33. Qb4 {[%emt 0:04:25]} Kg7 {[%emt 0:10:47]} 34. Nd2 {[%emt 0:05:03][%mdl 64] [#] Deflection} Re6 {[%emt 0:04:46] The position is equal.} 35. Nf3 {[%emt 0:02:18]} Re8 {[%emt 0:04:27]} 36. Nd2 {[%emt 0:01:47][%mdl 64] Deflection} Ba4 {[%emt 0:01:36]} 37. Nf3 {[%emt 0:02:16][%cal Oe2a6]} Bc6 {[%emt 0:03:59]} 38. Nd2 {[%emt 0:00:06][%mdl 64] [#] Deflection} Ba4 {[%emt 0:01:15]} 39. Nf3 {[%emt 0:01:25] Not much happened in this game.   Weighted Error Value: White=0.05 (flawless) /Black=0.04 (flawless)} 1/2-1/2

[Event "85th Tata Steel Masters 2023"]
[Site "Wijk aan Zee"]
[Date "2023.01.25"]
[Round "10.6"]
[White "Gukesh D"]
[Black "Praggnanandhaa R"]
[Result "1-0"]
[ECO "A33"]
[WhiteElo "2725"]
[BlackElo "2684"]
[Annotator "TA"]
[PlyCount "79"]
[EventDate "2023.01.10"]
[EventType "tourn"]
[EventCountry "NED"]
[SourceTitle "playchess.com"]
[Source "ChessBase"]
[SourceQuality "1"]
[TimeControl "40/6000+30:30/3000+30:900+30"]

{[%evp 12,79,16,4,9,18,22,2,14,-8,-5,-7,-8,-6,-9,-11,-11,-11,-19,-17,-18,-66,101,119,115,130,118,107,100,121,120,45,254,253,253,253,250,243,252,148,347,366,318,259,468,316,310,297,300,293,480,447,536,530,614,617,29978,29978,29978,29979,29991,29992,29992,29993,29993,29994,29996,29994,29994,29995]} 1. c4 {[%emt 0:00:09]} c5 {[%emt 0:01:14]} 2. Nf3 {[%emt 0:00:23]} Nf6 {[%emt 0:00:21]} 3. Nc3 {[%emt 0:00:08]} Nc6 {[%emt 0:00:07]} 4. d4 {[%emt 0:01:23]} cxd4 {[%emt 0:01:18]} 5. Nxd4 {[%emt 0:00:07]} e6 {[%emt 0:00:06]} 6. a3 {[%emt 0:00:11]} Be7 {[%emt 0:00:37]} 7. e4 {[%emt 0:02:11]} O-O {[%emt 0:00:28] A33: Symmetrical English: 2 Nf3 Nf6 3 d4 cxd4 4 Nxd4 e6 5 Nc3 Nc6.} 8. Nf3 {[%emt 0:03:36]} Qa5 {[%emt 0:00:48]} 9. Bd2 {[%emt 0:00:08][%cal Oc3d5]} Qh5 {[%emt 0:00:43] The position is equal.} 10. Rg1 $5 {[%emt 0:00:44][%mdl 4] [#] Exploring less charted territory.} d5 $146 {[%emt 0:02:51]} ({Predecessor:} 10... a6 11. h3 Ne5 12. g4 Nxf3+ 13. Qxf3 Qc5 14. g5 Ne8 15. h4 b5 16. cxb5 axb5 17. Bxb5 {0-1 Giri,A (2764)-Nepomniachtchi,I (2784) Legends of Chess Final 2020 (1.22)}) 11. g4 $1 {[%emt 0:02:11][%mdl 64] Deflection} Nxg4 {[%emt 0:00:32] And now ...dxe4 would win.} 12. cxd5 {[%emt 0:00:12]} (12. exd5 exd5 13. Nxd5 (13. cxd5 $2 Bc5 $19) 13... Nxh2 14. Nxe7+ Nxe7 15. Nxh2 Qxh2 $17) 12... exd5 {[%emt 0:01:37]} 13. Nxd5 {[%emt 0:00:11]} Bc5 {[%emt 0:06:05]} 14. Qe2 {[%emt 0:00:20] Threatens to win with h3.} f5 {[%emt 0:03:03]} (14... Nxh2 $2 15. Nf6+ Kh8 16. Nxh5 $18) (14... Bxf2+ $2 15. Qxf2 Nxf2 16. Nf6+ Kh8 17. Nxh5 $18) 15. Nf4 {[%emt 0:20:24]} Qf7 {[%emt 0:00:37]} 16. Rg2 {[%emt 0:04:37]} (16. Ng5 $11 {is more appropriate.} Qe7 17. O-O-O) 16... Qe7 $2 {[%emt 0:42:39] [#]} (16... fxe4 $15 {stays ahead.} 17. Ng5 Qf5 18. Rxg4 Qxg4 19. Qc4+ Kh8 20. Qxc5 Rf5) 17. e5 $1 $16 {[%emt 0:08:50][%mdl 512]} Ncxe5 {[%emt 0:06:50] [#]} (17... b5 18. Bc3) 18. O-O-O $1 {[%emt 0:02:06]} Bd6 {[%emt 0:05:48]} 19. Bc3 {[%emt 0:09:32][%cal Od1d6] Black must now prevent Rxd6!} Nxf3 {[%emt 0:03:54]} 20. Qxf3 {[%emt 0:00:17]} Be6 {[%emt 0:00:47] Prevents Bc4.} 21. h3 {[%emt 0:17:03]} ({White should try} 21. Nxe6 $16 Qxe6 22. h3 (22. Qxb7 Be5 $11)) 21... Be5 {[%emt 0:11:08]} 22. Nxe6 $18 {[%emt 0:12:42]} (22. hxg4 fxg4 23. Nd5 gxf3 $15) 22... Qxe6 {[%emt 0:00:38]} 23. hxg4 {[%emt 0:00:23]} Bxc3 {[%emt 0:00:22]} 24. bxc3 {[%emt 0:00:26] aiming for gxf5.} Rad8 {[%emt 0:00:59]} 25. gxf5 {[%emt 0:03:46]} (25. Qxb7 Rxd1+ 26. Kxd1 Rd8+ 27. Kc2 (27. Kc1 $2 Qe1+ 28. Kb2 Rd2+ 29. Kb3 Qb1+ {[%mdl 64] Skewer} 30. Ka4 Qxb7 $19) 27... Qa2+ 28. Qb2 Rd2+ 29. Kxd2 Qxb2+ 30. Ke3 Qxc3+ 31. Ke2 Qb2+ 32. Kf3 Qxa3+ 33. Ke2 Qb2+ 34. Kf3 Qc3+ 35. Ke2 Qc2+ 36. Ke3 f4+ 37. Kd4 f3 $19) (25. Rxd8 $18 Rxd8 26. Qe2 (26. gxf5 $2 Qe1+ 27. Kc2 Rd2+ 28. Kb3 Qxf1 $19) 26... Qxe2 27. Bxe2) 25... Rxd1+ $2 {[%emt 0:07:29] Loses the game.} (25... Qa2 $16 {might work better.}) 26. Qxd1 {[%emt 0:00:52]} ({Not} 26. Kxd1 Rd8+ 27. Bd3 Qb3+ 28. Ke2 Qb2+ 29. Kd1 Qb3+ 30. Ke2 Qb2+ 31. Kd1 Qb3+ $11) 26... Qa2 {[%emt 0:00:17]} 27. Bd3 {[%emt 0:06:05]} Re8 $2 {[%emt 0:04:13]} (27... Qxa3+ 28. Kd2 (28. Kb1 Kh8 $18) 28... Qb2+ 29. Qc2 Qxc2+ 30. Kxc2 Kf7) 28. Rg4 {[%emt 0:05:24] White threatens Bc4+ and mate.} Qxa3+ {[%emt 0:03:09]} 29. Kd2 {[%emt 0:00:46]} ({Weaker is} 29. Kb1 Qxc3 30. Bc4+ Kh8 $18) 29... Qb2+ {[%emt 0:00:13]} 30. Qc2 {[%emt 0:00:10]} Qb6 {[%emt 0:00:07]} (30... Qxc2+ {was necessary.} 31. Bxc2 Kf8) 31. Qa2+ {[%emt 0:02:22]} Kh8 {[%emt 0:00:26]} 32. Rd4 {[%emt 0:00:07]} Qh6+ {[%emt 0:00:38]} 33. Kc2 {[%emt 0:00:09][%cal Oa2f7] Qf7! is the strong threat.} Qh2 {[%emt 0:00:21]} 34. Qf7 {[%emt 0:01:13][%cal Rf7e8] White mates.} Qxf2+ {[%emt 0:00:07]} 35. Kb3 {[%emt 0:00:05][%cal Rf7e8]} Rg8 {[%emt 0:02:09]} 36. Bc4 {[%emt 0:00:42][%csl Gc4][%cal Rf7g8]} Rb8 {[%emt 0:00:29]} 37. Qe7 {[%emt 0:01:39]} ({Less strong is} 37. Rg4 Qb6+ 38. Kc2 Qf2+ 39. Kb3 Qb6+ 40. Ka2 Qf2+ 41. Ka3 Qc5+ 42. Kb2 Qf2+ 43. Ka3 Qc5+ 44. Kb3 Qb6+ $16) 37... h5 {[%emt 0:00:45]} 38. Qg5 {[%emt 0:00:54][%cal Rg5h5]} Qf3 {[%emt 0:00:06]} 39. Rh4 {[%emt 0:00:25]} Qd1+ {[%emt 0:00:09]} 40. Kb2 {[%emt 0:00:05] Weighted Error Value: White=0.18 (very precise) /Black=0.59} 1-0